fUSD/lending_fUSD_20241003
["ID","MTS","AMOUNT","RATE_DAILY","PERIOD"]
[339786602,1727987472699,-500.0,0.00033424,120]
[339786603,1727987472708,-181.278868,0.00033424,7]
[339786604,1727987472718,-181.278868,0.00033424,7]
[339786605,1727987472728,-500.0,0.00033424,120]
[339786606,1727987472737,-500.0,0.00033424,120]
[339786607,1727987472746,-500.0,0.00033424,120]
[339786608,1727987472755,-532.65,0.00033424,120]
[339786609,1727987472765,-500.0,0.00033424,120]
[339786610,1727987472774,-500.0,0.00033424,120]
[339786611,1727987472783,-500.0,0.00033424,120]
[339786612,1727987472793,-500.0,0.00033424,120]
[339786613,1727987472802,-951.98,0.00033424,120]
[339786614,1727987472812,-3113.1,0.00033424,120]
[339786615,1727987472821,-500.0,0.00033424,120]
[339786616,1727987472832,-952.18,0.00033424,120]
[339786617,1727987472843,-1578.27,0.00033424,120]
[339786618,1727987472853,-799.85,0.00033424,120]
[339786619,1727987472862,-500.0,0.00033424,120]
[339786620,1727987472871,-584.82,0.00033424,120]
[339786621,1727987472882,-708.6,0.00033424,120]
[339786622,1727987472894,-500.0,0.00033424,120]
[339786623,1727987472904,-560.83,0.00033424,120]
[339786624,1727987472917,-500.0,0.00033424,120]
[339786625,1727987472928,-610.78,0.00033424,120]
[339786626,1727987472937,-500.0,0.00033424,120]
[339786627,1727987472947,-1249.01,0.00033424,120]
[339786628,1727987472956,-500.0,0.00033424,120]
[339786629,1727987472965,-500.0,0.00033424,120]
[339786630,1727987472974,-502.85908362,0.00033424,120]
[339786631,1727987472984,-500.0,0.00033424,120]
[339786632,1727987472993,-151.0,0.00033424,7]
[339786633,1727987473002,-151.0,0.00033424,7]
[339786634,1727987473012,-500.0,0.00033424,120]
[339786635,1727987473021,-1225.26,0.00033424,120]
[339786636,1727987473031,-151.0,0.00033424,7]
[339786637,1727987473041,-151.0,0.00033424,7]
[339786638,1727987473051,-506.44811861,0.00033424,120]
[339786639,1727987473061,-500.0,0.00033424,120]
[339786640,1727987473071,-247.027952,0.00033424,7]
[339786641,1727987473081,-911.79,0.00033424,120]
[339786642,1727987473090,-817.82,0.00033424,120]
[339786643,1727987473100,-500.0,0.00033424,120]
[339786644,1727987473109,-500.0,0.00033424,120]
[339786645,1727987473119,-500.0,0.00033424,120]
[339786646,1727987473129,-517.59,0.00033424,120]
[339786647,1727987473139,-1292.49,0.00033424,7]
[339786648,1727987473148,-500.0,0.00033424,120]
[339786649,1727987473158,-500.0,0.00033424,120]
[339786650,1727987473168,-500.0,0.00033424,120]
[339786651,1727987473177,-500.0,0.00033424,120]
[339786652,1727987473187,-762.72,0.00033424,120]
[339786653,1727987473197,-1396.71,0.00033424,120]
[339786654,1727987473206,-1184.87,0.00033424,120]
[339786655,1727987473216,-1701.57,0.00033424,120]
[339786656,1727987473226,-714.2,0.00033424,120]
[339786657,1727987473235,-500.0,0.00033424,120]
[339786658,1727987473245,-500.0,0.00033424,120]
[339786659,1727987473254,-500.0,0.00033424,120]
[339786660,1727987473264,-1713.42,0.00033424,120]
[339786661,1727987473274,-676.51,0.00033424,120]
[339786662,1727987473284,-543.4,0.00033424,120]
[339786663,1727987473293,-615.69,0.00033424,120]
[339786664,1727987473303,-675.57,0.00033424,120]
[339786665,1727987473312,-822.0,0.00033424,120]
[339786666,1727987473322,-781.4,0.00033424,120]
[339786667,1727987473332,-500.0,0.00033424,120]
[339786668,1727987473342,-500.0,0.00033424,120]
[339786669,1727987473351,-500.0,0.00033424,120]
[339786670,1727987473362,-747.69,0.00033424,120]
[339786671,1727987473372,-500.0,0.00033424,120]
[339786672,1727987473382,-617.77,0.00033424,120]
[339786673,1727987473393,-911.34,0.00033424,120]
[339786674,1727987473403,-500.0,0.00033424,120]
[339786675,1727987473414,-151.0,0.00033424,7]
[339786676,1727987473424,-500.0,0.00033424,120]
[339786677,1727987473434,-151.0,0.00033424,7]
[339786678,1727987473443,-500.0,0.00033424,120]
[339786679,1727987473453,-500.0,0.00033424,120]
[339786680,1727987473465,-1099.61,0.00033424,120]
[339786681,1727987473476,-500.0,0.00033424,120]
[339786682,1727987473486,-500.0,0.00033424,120]
[339786683,1727987473496,-500.0,0.00033424,120]
[339786684,1727987473506,-1245.73,0.00033424,120]
[339786685,1727987473517,-605.0,0.00033424,120]
[339786686,1727987473527,-570.35,0.00033424,120]
[339786687,1727987473538,-614.52,0.00033424,120]
[339786688,1727987473549,-500.0,0.00033424,120]
[339786689,1727987473558,-806.75,0.00033424,120]
[339786690,1727987473570,-761.4,0.00033424,120]
[339786691,1727987473581,-500.0,0.00033424,120]
[339786692,1727987473591,-500.0,0.00033424,120]
[339786693,1727987473601,-500.0,0.00033424,120]
[339786694,1727987473612,-1016.56,0.00033424,120]
[339786695,1727987473622,-500.0,0.00033424,120]
[339786696,1727987473634,-500.0,0.00033424,120]
[339786697,1727987473647,-500.0,0.00033424,120]
[339786698,1727987473657,-908.19,0.00033424,120]
[339786699,1727987473667,-500.0,0.00033424,120]
[339786700,1727987473677,-500.0,0.00033424,120]
[339786701,1727987473687,-500.0,0.00033424,120]
[339786702,1727987473696,-650.02,0.00033424,120]
[339786703,1727987473706,-2907.54,0.00033424,120]
[339786704,1727987473716,-500.0,0.00033424,120]
[339786705,1727987473725,-1955.84,0.00033424,120]
[339786706,1727987473734,-666.23,0.00033424,120]
[339786707,1727987473743,-500.0,0.00033424,5]
[339786708,1727987473753,-1768.990651,0.00033424,7]
[339786709,1727987473763,-1768.990651,0.00033424,7]
[339786710,1727987473773,-500.0,0.00033424,120]
[339786711,1727987473782,-619.0,0.00033424,120]
[339786712,1727987473792,-1768.990651,0.00033424,7]
[339786713,1727987473802,-1476.07,0.00033424,120]
[339786714,1727987473812,-1768.990651,0.00033424,7]
[339786715,1727987473821,-500.0,0.00033424,120]
[339786716,1727987473831,-200.0,0.00033424,7]
[339786717,1727987473845,-580.92,0.00033424,120]
[339786718,1727987473857,-664.13,0.00033424,120]
[339786719,1727987473867,-559.23,0.00033424,120]
[339786720,1727987473878,-500.0,0.00033424,120]
[339786721,1727987473889,-500.0,0.00033424,120]
[339786722,1727987473899,-682.12,0.00033424,120]
[339786723,1727987473909,-662.07,0.00033424,120]
[339786724,1727987473919,-500.0,0.00033424,120]
[339786725,1727987473929,-500.0,0.00033424,120]
[339786726,1727987473939,-500.0,0.00033424,120]
[339786727,1727987473949,-500.0,0.00033424,120]
[339786728,1727987473959,-1017.64,0.00033424,120]
[339786729,1727987473969,-1843.32,0.00033424,120]
[339786730,1727987473979,-929.85,0.00033424,120]
[339786731,1727987473989,-500.0,0.00033424,120]
[339786732,1727987473998,-903.96,0.00033424,120]
[339786733,1727987474008,-500.0,0.00033424,120]
[339786734,1727987474017,-500.0,0.00033424,120]
[339786735,1727987474027,-1244.9,0.00033424,120]
[339786736,1727987474037,-500.0,0.00033424,120]
[339786737,1727987474046,-2059.5,0.00033424,120]
[339786738,1727987474056,-1208.85,0.00033424,120]
[339786739,1727987474367,-500.0,0.00033424,120]
[339786740,1727987474384,-1392.18,0.00033424,120]
[339786741,1727987474396,-500.0,0.00033424,120]
[339786742,1727987474406,-1754.22,0.00033424,120]
[339786743,1727987474416,-500.0,0.00033424,120]
[339786744,1727987474425,-500.0,0.00033424,120]
[339786745,1727987474435,-3096.26,0.00033424,120]
[339786746,1727987474444,-838.34,0.00033424,120]
[339786747,1727987474453,-500.0,0.00033424,120]
[339786748,1727987474463,-767.37,0.00033424,120]
[339786749,1727987474472,-801.012603,0.00033424,7]
[339786750,1727987474482,-801.012603,0.00033424,7]
[339786751,1727987474492,-500.0,0.00033424,120]
[339786752,1727987474502,-1262.93,0.00033424,120]
[339786753,1727987474512,-500.0,0.00033424,120]
[339786754,1727987474521,-801.012603,0.00033424,7]
[339786755,1727987474531,-801.012603,0.00033424,7]
[339786756,1727987474541,-900.49,0.00033424,120]
[339786757,1727987474550,-871.88,0.00033424,120]
[339786758,1727987474560,-1915.72,0.00033424,120]
[339786759,1727987474570,-546.33,0.00033424,120]
[339786760,1727987474579,-500.0,0.00033424,120]
[339786761,1727987474588,-542.05,0.00033424,120]
[339786762,1727987474598,-500.0,0.00033424,120]
[339786763,1727987474607,-1246.58,0.00033424,120]
[339786764,1727987474617,-755.2,0.00033424,120]
[339786765,1727987474627,-500.0,0.00033424,120]
[339786766,1727987474636,-515.39,0.00033424,120]
[339786767,1727987474648,-500.0,0.00033424,120]
[339786768,1727987474657,-1449.61,0.00033424,120]
[339786769,1727987474666,-500.0,0.00033424,120]
[339786770,1727987474675,-615.97,0.00033424,120]
[339786771,1727987474685,-500.0,0.00033424,120]
[339786772,1727987474695,-500.0,0.00033424,120]
[339786773,1727987474704,-585.64793538,0.00033424,2]
[339786774,1727987474713,-500.0,0.00033424,120]
[339786775,1727987474722,-828.98,0.00033424,120]
[339786776,1727987474731,-522.48,0.00033424,120]
[339786777,1727987474741,-500.0,0.00033424,120]
[339786778,1727987474751,-500.0,0.00033424,120]
[339786779,1727987474760,-769.93,0.00033424,120]
[339786780,1727987474770,-500.0,0.00033424,120]
[339786781,1727987474780,-1535.42,0.00033424,120]
[339786782,1727987474789,-692.01,0.00033424,120]
[339786783,1727987474799,-500.0,0.00033424,120]
[339786784,1727987474809,-500.0,0.00033424,120]
[339786785,1727987474819,-316.43647376,0.00033424,120]
[339786786,1727987474829,-500.0,0.00033424,120]
[339786787,1727987474841,-617.57,0.00033424,120]
[339786788,1727987474851,-500.0,0.00033424,120]
[339786789,1727987474860,-500.0,0.00033424,120]
[339786790,1727987474870,-500.0,0.00033424,120]
[339786791,1727987474880,-500.0,0.00033424,120]
[339786792,1727987474891,-775.222596,0.00033424,7]
[339786793,1727987474901,-1322.47,0.00033424,120]
[339786794,1727987474911,-678.3,0.00033424,120]
[339786795,1727987474923,-3041.51,0.00033424,120]
[339786796,1727987474933,-1088.33,0.00033424,120]
[339786797,1727987474943,-775.222596,0.00033424,7]
[339786798,1727987474953,-685.28,0.00033424,120]
[339786799,1727987474962,-500.0,0.00033424,120]
[339786800,1727987474972,-809.97,0.00033424,120]
[339786801,1727987474981,-500.0,0.00033424,120]
[339786802,1727987474991,-617.35,0.00033424,120]
[339786803,1727987475001,-500.0,0.00033424,120]
[339786804,1727987475011,-500.0,0.00033424,120]
[339786805,1727987475021,-500.0,0.00033424,120]
[339786806,1727987475031,-504.49,0.00033424,120]
[339786807,1727987475040,-1000.0,0.00033424,120]
[339786808,1727987475050,-2582.55,0.00033424,14]
[339786809,1727987475060,-821.22,0.00033424,120]
[339786810,1727987475069,-2036.76,0.00033424,2]
[339786811,1727987475079,-500.0,0.00033424,120]
[339786812,1727987475089,-500.0,0.00033424,120]
[339786813,1727987475098,-752.83,0.00033424,120]
[339786814,1727987475107,-1192.92,0.00033424,120]
[339786815,1727987475116,-500.0,0.00033424,120]
[339786816,1727987475126,-500.0,0.00033424,120]
[339786817,1727987475136,-500.0,0.00033424,120]
[339786818,1727987475146,-500.0,0.00033424,120]
[339786819,1727987475155,-1822.29,0.00033424,120]
[339786820,1727987475164,-2184.089244,0.00033424,7]
[339786821,1727987475175,-696.33,0.00033424,120]
[339786822,1727987475185,-500.0,0.00033424,120]
[339786823,1727987475194,-1595.23,0.00033424,120]
[339786824,1727987475204,-500.0,0.00033424,120]
[339786825,1727987475213,-1676.96,0.00033424,120]
[339786826,1727987475223,-2184.089244,0.00033424,7]
[339786827,1727987475233,-602.51,0.00033424,120]
[339786828,1727987475243,-1430.65,0.00033424,120]
[339786829,1727987475254,-10000.0,0.00033424,7]
[339786830,1727987475264,-500.0,0.00033424,120]
[339786831,1727987475274,-10000.0,0.00033424,7]
[339786832,1727987475284,-500.0,0.00033424,120]
[339786833,1727987475295,-10000.0,0.00033424,7]
[339786834,1727987475306,-1022.58,0.00033424,120]
[339786835,1727987475316,-10000.0,0.00033424,7]
[339786836,1727987475327,-534.34,0.00033424,120]
[339786837,1727987475338,-572.51,0.00033424,120]
[339786838,1727987475349,-500.0,0.00033424,120]
[339786839,1727987475360,-500.0,0.00033424,120]
[339786840,1727987475370,-743.36,0.00033424,120]
[339786841,1727987475380,-500.0,0.00033424,120]
[339786842,1727987475392,-10000.0,0.00033424,7]
[339786843,1727987475402,-722.75,0.00033424,120]
[339786844,1727987475413,-10000.0,0.00033424,7]
[339786845,1727987475423,-2933.87,0.00033424,120]
[339786846,1727987475432,-500.0,0.00033424,120]
[339786847,1727987475441,-422.69818776,0.00033424,120]
[339786848,1727987475451,-891.75,0.00033424,120]
[339786849,1727987475460,-500.0,0.00033424,120]
[339786850,1727987475470,-734.12,0.00033424,120]
[339786851,1727987475480,-10000.0,0.00033424,7]
[339786852,1727987475490,-10000.0,0.00033424,7]
[339786853,1727987475503,-500.0,0.00033424,120]
[339786854,1727987475513,-500.0,0.00033424,120]
[339786855,1727987475523,-500.0,0.00033424,120]
[339786856,1727987475532,-10000.0,0.00033424,7]
[339786857,1727987475542,-500.0,0.00033424,120]
[339786858,1727987475552,-10000.0,0.00033424,7]
[339786859,1727987475562,-830.44,0.00033424,120]
[339786860,1727987475572,-2736.92,0.00033424,120]
[339786861,1727987475582,-2840.63,0.00033424,120]
[339786862,1727987475592,-1668.6,0.00033424,120]
[339786863,1727987475602,-963.2,0.00033424,120]
[339786864,1727987475612,-3064.64,0.00033424,120]
[339786865,1727987475622,-500.0,0.00033424,120]
[339786866,1727987475632,-500.0,0.00033424,120]
[339786867,1727987475642,-500.0,0.00033424,120]
[339786868,1727987475652,-500.0,0.00033424,120]
[339786869,1727987475661,-895.53,0.00033424,120]
[339786870,1727987475671,-500.0,0.00033424,120]
[339786871,1727987475681,-594.854743,0.00033424,7]
[339786872,1727987475691,-603.25,0.00033424,120]
[339786873,1727987475701,-893.66,0.00033424,120]
[339786874,1727987475711,-1265.22,0.00033424,120]
[339786875,1727987475721,-648.93,0.00033424,120]
[339786876,1727987475730,-594.854743,0.00033424,7]
[339786877,1727987475740,-702.69,0.00033424,120]
[339786878,1727987475750,-625.95,0.00033424,120]
[339786879,1727987475759,-912.75,0.00033424,120]
[339786880,1727987475769,-500.0,0.00033424,120]
[339786881,1727987475779,-500.0,0.00033424,120]
[339786882,1727987475789,-500.0,0.00033424,120]
[339786883,1727987475799,-500.0,0.00033424,120]
[339786884,1727987475808,-500.0,0.00033424,120]
[339786885,1727987475818,-500.0,0.00033424,120]
[339786886,1727987475829,-500.0,0.00033424,120]
[339786887,1727987475841,-589.87,0.00033424,120]
[339786888,1727987475850,-500.0,0.00033424,120]
[339786889,1727987475860,-904.15,0.00033424,120]
[339786890,1727987475870,-809.38,0.00033424,120]
[339786891,1727987475882,-500.0,0.00033424,120]
[339786892,1727987475893,-500.0,0.00033424,120]
[339786893,1727987475902,-1583.67,0.00033424,120]
[339786894,1727987475913,-500.0,0.00033424,120]
[339786895,1727987475925,-2849.48,0.00033424,120]
[339786896,1727987475935,-1559.78,0.00033424,120]
[339786897,1727987475945,-500.0,0.00033424,2]
[339786898,1727987475955,-526.9,0.00033424,120]
[339786899,1727987475964,-500.0,0.00033424,120]
[339786900,1727987475974,-522.66,0.00033424,120]
[339786901,1727987475983,-887.97,0.00033424,120]
[339786902,1727987475993,-608.69,0.00033424,120]
[339786903,1727987476002,-1196.23,0.00033424,120]
[339786904,1727987476012,-500.0,0.00033424,120]
[339786905,1727987476022,-1435.23,0.00033424,120]
[339786906,1727987476032,-871.817102,0.00033424,7]
[339786907,1727987476042,-151.0,0.00033424,7]
[339786908,1727987476052,-1891.17,0.00033424,120]
[339786909,1727987476062,-734.62,0.00033424,120]
[339786910,1727987476071,-500.0,0.00033424,5]
[339786911,1727987476081,-871.817102,0.00033424,7]
[339786912,1727987476091,-1907.44,0.00033424,120]
[339786913,1727987476101,-954.92,0.00033424,30]
[339786914,1727987476111,-1389.631609,0.00033424,7]
[339786915,1727987476120,-760.37,0.00033424,120]
[339786916,1727987476130,-500.0,0.00033424,120]
[339786917,1727987476142,-1267.83,0.00033424,120]
[339786918,1727987476154,-372.0437668,0.00033424,120]
[339786919,1727987476164,-500.0,0.00033424,120]
[339786920,1727987476174,-500.0,0.00033424,120]
[339786921,1727987476183,-1389.631609,0.00033424,7]
[339786922,1727987476193,-3152.28,0.00033424,120]
[339786923,1727987476203,-2240.67,0.00033424,120]
[339786924,1727987476213,-500.0,0.00033424,120]
[339786925,1727987476222,-692.31,0.00033424,120]
[339786926,1727987476232,-4273.85,0.00033424,2]
[339786927,1727987476241,-500.0,0.00033424,120]
[339786928,1727987476252,-1375.15,0.00033424,120]
[339786929,1727987476262,-566.42,0.00033424,120]
[339786930,1727987476272,-500.0,0.00033424,120]
[339786931,1727987476282,-1352.94,0.00033424,120]
[339786932,1727987476293,-2143.59,0.00033424,120]
[339786933,1727987476303,-197.419055,0.00033424,7]
[339786934,1727987476313,-500.0,0.00033424,120]
[339786935,1727987476322,-500.0,0.00033424,120]
[339786936,1727987476332,-197.419055,0.00033424,7]
[339786937,1727987476342,-500.0,0.00033424,120]
[339786938,1727987476351,-500.0,0.00033424,120]
[339786939,1727987476361,-366.010612,0.00033424,7]
[339786940,1727987476370,-2552.25,0.00033424,120]
[339786941,1727987476380,-332.47607504,0.00033424,120]
[339786942,1727987476393,-807.0,0.00033424,120]
[339786943,1727987476403,-1929.43,0.00033424,120]
[339786944,1727987476413,-500.0,0.00033424,120]
[339786945,1727987476422,-366.010612,0.00033424,7]
[339786946,1727987476432,-500.0,0.00033424,120]
[339786947,1727987476441,-687.7,0.00033424,120]
[339786948,1727987476451,-500.0,0.00033424,120]
[339786949,1727987476460,-500.0,0.00033424,120]
[339786950,1727987476470,-685.66,0.00033424,120]
[339786951,1727987476479,-500.0,0.00033424,120]
[339786952,1727987476488,-500.0,0.00033424,120]
[339786953,1727987476498,-500.0,0.00033424,120]
[339786954,1727987476508,-426.78146,0.00033424,7]
[339786955,1727987476517,-500.0,0.00033424,120]
[339786956,1727987476527,-1124.73,0.00033424,120]
[339786957,1727987476537,-500.0,0.00033424,120]
[339786958,1727987476547,-687.49,0.00033424,120]
[339786959,1727987476557,-426.78146,0.00033424,7]
[339786960,1727987476566,-1267.04,0.00033424,120]
[339786961,1727987476576,-1073.96,0.00033424,120]
[339786962,1727987476586,-515.88,0.00033424,120]
[339786963,1727987476595,-500.0,0.00033424,120]
[339786964,1727987476605,-924.47,0.00033424,120]
[339786965,1727987476615,-3842.317748,0.00033424,7]
[339786966,1727987476624,-500.0,0.00033424,120]
[339786967,1727987476634,-3529.62,0.00033424,120]
[339786968,1727987476646,-500.0,0.00033424,120]
[339786969,1727987476655,-500.0,0.00033424,120]
[339786970,1727987476664,-3842.317748,0.00033424,7]
[339786971,1727987476674,-500.0,0.00033424,120]
[339786972,1727987476683,-2122.92,0.00033424,120]
[339786973,1727987476693,-500.0,0.00033424,120]
[339786974,1727987476703,-500.0,0.00033424,120]
[339786975,1727987476713,-1443.8,0.00033424,120]
[339786976,1727987476722,-598.1,0.00033424,120]
[339786977,1727987476732,-583.93,0.00033424,120]
[339786978,1727987476741,-1130.17,0.00033424,120]
[339786979,1727987476752,-500.0,0.00033424,120]
[339786980,1727987476839,-500.0,0.00033424,120]
[339786981,1727987476849,-500.0,0.00033424,120]
[339786982,1727987476858,-500.0,0.00033424,120]
[339786983,1727987476868,-512.25,0.00033424,120]
[339786984,1727987476878,-500.0,0.00033424,120]
[339786985,1727987476887,-739.66,0.00033424,120]
[339786986,1727987476900,-500.0,0.00033424,120]
[339786987,1727987476909,-2221.7,0.00033424,120]
[339786988,1727987476920,-500.0,0.00033424,120]
[339786989,1727987476930,-500.0,0.00033424,120]
[339786990,1727987476939,-500.0,0.00033424,120]
[339786991,1727987476948,-500.0,0.00033424,120]
[339786992,1727987476958,-500.0,0.00033424,120]
[339786993,1727987476967,-878.47,0.00033424,120]
[339786994,1727987476976,-753.47,0.00033424,120]
[339786995,1727987476986,-2105.23,0.00033424,120]
[339786996,1727987476995,-500.0,0.00033424,120]
[339786997,1727987477006,-880.23,0.00033424,120]
[339786998,1727987477016,-500.0,0.00033424,120]
[339786999,1727987477026,-150.0,0.00033424,120]
[339787000,1727987477036,-1101.24,0.00033424,120]
[339787001,1727987477046,-500.0,0.00033424,120]
[339787002,1727987477057,-1000.0,0.00033424,120]
[339787003,1727987477067,-594.49,0.00033424,120]
[339787004,1727987477076,-500.0,0.00033424,120]
[339787005,1727987477085,-427.65880771,0.00033424,120]
[339787006,1727987477095,-1746.33,0.00033424,120]
[339787007,1727987477104,-500.0,0.00033424,120]
[339787008,1727987477114,-500.0,0.00033424,120]
[339787009,1727987477123,-983.59,0.00033424,120]
[339787010,1727987477132,-1535.26,0.00033424,120]
[339787011,1727987477143,-754.45,0.00033424,120]
[339787012,1727987477153,-889.14,0.00033424,120]
[339787013,1727987477162,-3156.06,0.00033424,120]
[339787014,1727987477172,-500.0,0.00033424,120]
[339787015,1727987477182,-2375.19,0.00033424,120]
[339787016,1727987477191,-640.32,0.00033424,120]
[339787017,1727987477200,-500.0,0.00033424,120]
[339787018,1727987477211,-500.0,0.00033424,120]
[339787019,1727987477220,-500.0,0.00033424,120]
[339787020,1727987477229,-652.15,0.00033424,120]
[339787021,1727987477239,-580.84,0.00033424,120]
[339787022,1727987477248,-2171.15,0.00033424,120]
[339787023,1727987477257,-970.9,0.00033424,120]
[339787024,1727987477267,-500.0,0.00033424,120]
[339787025,1727987477276,-576.98,0.00033424,120]
[339787026,1727987477285,-2322.76,0.00033424,120]
[339787027,1727987477294,-500.0,0.00033424,120]
[339787028,1727987477303,-500.0,0.00033424,120]
[339787029,1727987477312,-2446.1,0.00033424,120]
[339787030,1727987477323,-500.0,0.00033424,120]
[339787031,1727987477332,-500.0,0.00033424,120]
[339787032,1727987477342,-569.39,0.00033424,120]
[339787033,1727987477351,-500.0,0.00033424,120]
[339787034,1727987477361,-500.0,0.00033424,120]
[339787035,1727987477372,-865.83,0.00033424,120]
[339787036,1727987477383,-500.0,0.00033424,120]
[339787037,1727987477394,-559.14,0.00033424,120]
[339787038,1727987477409,-526.15,0.00033424,120]
[339787039,1727987477418,-500.0,0.00033424,120]
[339787040,1727987477427,-500.0,0.00033424,120]
[339787041,1727987477436,-500.0,0.00033424,120]
[339787042,1727987477446,-500.0,0.00033424,120]
[339787043,1727987477455,-1022.47,0.00033424,120]
[339787044,1727987477464,-500.0,0.00033424,120]
[339787045,1727987477474,-500.0,0.00033424,120]
[339787046,1727987477483,-1404.02,0.00033424,120]
[339787047,1727987477492,-500.0,0.00033424,120]
[339787048,1727987477501,-641.91,0.00033424,120]
[339787049,1727987477510,-500.0,0.00033424,120]
[339787050,1727987477518,-500.0,0.00033424,120]
[339787051,1727987477527,-926.29,0.00033424,120]
[339787052,1727987477536,-796.9,0.00033424,120]
[339787053,1727987477545,-2021.14,0.00033424,120]
[339787054,1727987477554,-500.0,0.00033424,120]
[339787055,1727987477563,-500.0,0.00033424,120]
[339787056,1727987477574,-500.0,0.00033424,120]
[339787057,1727987477585,-3420.05,0.00033424,120]
[339787058,1727987477596,-920.88,0.00033424,120]
[339787059,1727987477607,-151.0,0.00033424,7]
[339787060,1727987477618,-1014.09,0.00033424,120]
[339787061,1727987477627,-500.0,0.00033424,120]
[339787062,1727987477638,-585.28,0.00033424,120]
[339787063,1727987477649,-500.0,0.00033424,120]
[339787064,1727987477658,-1372.22,0.00033424,120]
[339787065,1727987477667,-501.73,0.00033424,120]
[339787066,1727987477675,-2342.53,0.00033424,120]
[339787067,1727987477686,-500.0,0.00033424,120]
[339787068,1727987477696,-849.67,0.00033424,120]
[339787069,1727987477704,-151.0,0.00033424,7]
[339787070,1727987477714,-503.33,0.00033424,120]
[339787071,1727987477723,-619.95,0.00033424,120]
[339787072,1727987477734,-650.32,0.00033424,120]
[339787073,1727987477745,-4513.04,0.00033424,120]
[339787074,1727987477755,-500.0,0.00033424,120]
[339787075,1727987477766,-697.86,0.00033424,120]
[339787076,1727987477777,-1906.45,0.00033424,120]
[339787077,1727987477787,-500.0,0.00033424,120]
[339787078,1727987477797,-269.982589,0.00033424,7]
[339787079,1727987477807,-518.87995552,0.00033424,120]
[339787080,1727987477816,-500.0,0.00033424,120]
[339787081,1727987477827,-500.0,0.00033424,120]
[339787082,1727987477840,-586.293285,0.00033424,7]
[339787083,1727987477852,-1342.8,0.00033424,120]
[339787084,1727987477862,-269.982589,0.00033424,7]
[339787085,1727987477873,-4469.7,0.00033424,120]
[339787086,1727987477883,-2820.31,0.00033424,120]
[339787087,1727987477893,-1714.59,0.00033424,120]
[339787088,1727987477902,-586.293285,0.00033424,7]
[339787089,1727987477910,-1567.97,0.00033424,120]
[339787090,1727987477920,-500.0,0.00033424,120]
[339787091,1727987477929,-858.96,0.00033424,120]
[339787092,1727987477939,-1071.24,0.00033424,120]
[339787093,1727987477948,-500.0,0.00033424,120]
[339787094,1727987477958,-500.0,0.00033424,120]
[339787095,1727987477967,-1083.26,0.00033424,120]
[339787096,1727987477977,-1923.73,0.00033424,120]
[339787097,1727987477987,-3953.73,0.00033424,120]
[339787098,1727987477996,-646.54,0.00033424,120]
[339787099,1727987478005,-500.0,0.00033424,120]
[339787100,1727987478014,-500.0,0.00033424,120]
[339787101,1727987478024,-1541.86,0.00033424,120]